Workbook

Sheet 日面経緯度計算
A1: 十字線法による太陽黒点経緯度測定 | F1: Ver2.0 | H1: 時刻データ | J1: 太陽データ | L1: 経緯度出力
A3: 年/月/日 | B3: 2024-11-25 | H3: P(°) | I3: B0(°) | J3: L0(°) | K3: Ｓ(″) | L3: δ
B4: 時 | C4: 分 | D4: 秒 | E4: T(時間) | L4: ° | M4: ′ | N4: °
A5: T1= | B5: 9 | C5: 33 | D5: 0.00 | E5: =B5+((C5+D5/60)/60) -> 9.55000000 | G5: =(B20>=0)*B3+(B20<0)*(B3-1) -> 2024-11-25 | H5: 18.13 | I5: 1.62 | J5: 204.16 | K5: 974 | L5: -20 | M5: 48 | N5: =L5+M5/60*(SIGN(L5)*(L5<>0)+SIGN(M5)*(L5=0)*SIGN(M5)) -> -20.8000
A6: T2= | B6: 9 | C6: 36 | D6: 26.47 | E6: =B6+((C6+D6/60)/60) -> 9.60735278 | G6: =G5+1 -> 2024-11-26 | H6: 17.78 | I6: 1.49 | J6: 190.98 | K6: 974 | L6: -20 | M6: 59 | N6: =L6+M6/60*(SIGN(L6)*(L6<>0)+SIGN(M6)*(L6=0)*SIGN(M6)) -> -20.9833
A7: T5= | B7: 9 | C7: 33 | D7: 2.62 | E7: =B7+((C7+D7/60)/60) -> 9.55072778 | G7: 観測時 | H7: =H5*($B20>=0)+H6*($B20<0)+$B20*(H6-H5)/24 -> 18.122 | I7: =I5*($B20>=0)+I6*($B20<0)+$B20*(I6-I5)/24 -> 1.617 | J7: =J5*($B20>=0)+J6*($B20<0)+$B20*(J6-J5)*(J6-J5<0)/24+$B20*(J6-J5-360)*(J6-J5>=0)/24 -> 203.843 | K7: =K5*($B20>=0)+K6*($B20<0)+$B20*(K6-K5)/24 -> 974.00 | N7: =N5*($B20>=0)+N6*($B20<0)+$B20*(N6-N5)/24 -> -20.8044
A8: T6= | B8: 9 | C8: 36 | D8: 11.31 | E8: =B8+((C8+D8/60)/60) -> 9.60314167 | G8: 観測時(rad) | H8: =RADIANS(H7) -> 0.3163 | I8: =RADIANS(I7) -> 0.0282 | J8: =RADIANS(J7) -> 3.5577 | K8: =K7/3600 -> 0.27056 | N8: =RADIANS(N7) -> -0.3631
B10: 時 | C10: 分 | D10: 秒 | E10: T(時間) | G10: スケッチ用紙記入用 | I10: 観測日 | J10: =B3 -> 2024-11-25 | K10: 位置時刻 | L10: 時 | M10: 分 | N10: 9:00から時間
A11: T3= | B11: 9 | C11: 35 | D11: 32.36 | E11: =(B11+((C11+D11/60)/60)) -> 9.59232222 | H11: P(°) | I11: B0(°) | J11: L0(°) | K11: Ｓ(″) | L11: 9 | M11: 20 | N11: =L11+(M11/60)-9 -> 0.3333
A12: T4= | B12: 9 | C12: 34 | D12: 29.58 | E12: =(B12+((C12+D12/60)/60)) -> 9.57488333 | H12: =H5*($N11>=0)+H6*($N11<0)+$N11*(H6-H5)/24 -> 18.125 | I12: =I5*($N11>=0)+I6*($N11<0)+$N11*(I6-I5)/24 -> 1.618 | J12: =J5*($N11>=0)+J6*($N11<0)+$N11*(J6-J5)*(J6-J5<0)/24+$N11*(J6-J5-360)*(J6-J5>=0)/24 -> 203.977 | K12: 974.00
A14: a=T6-T1 | D14: a= | E14: =E8-E5 -> 0.05314167 | G14: X= | H14: =2*SQRT(2)/((E14-E16)*COS(2*E19))*(((E24-E15+(E14/2-E23)*SIN(2*E19))*COS(E19)+(E14+E16*COS(2*E19))*SIN(E19)/2)) -> 0.26323464 | J14: -1≦X≦1
A15: b=T6+T1 | D15: b= | E15: =E8+E5 -> 19.15314167 | G15: Y= | H15: =SQRT(2)*COS(E19)*(2*E23-E14-E16)/(E14-E16) -> -0.40407144 | J15: -1≦Y≦1
A16: c=T5-T2 | D16: c= | E16: =E7-E6 -> -0.05662500 | G16: p= | H16: =SQRT(H14^2+H15^2) -> 0.48225118 | J16: =SQRT(X*X+Y*Y)
A17: f=T5+T2 | D17: f= | E17: =E7+E6 -> 19.15808056 | G17: α＝ | H17: =ATAN(H14/H15)+PI()*(H15<0) -> 2.56419478 | J17: rad
A19: b/2= | B19: =E15/2 -> 9.5765708 | D19: θ＝ | E19: =ATAN((E15-E17)/(E14-E16)) -> -0.04496411 | F19: rad
A20: b/2-9= | B20: =B19-9 -> 0.5765708 | D20: θ＝ | E20: =E19*180/PI() -> -2.57625349 | F20: ° | G20: β＝ | H20: =ASIN(H16)-RADIANS(H16*E21/3600) -> 0.50094605 | J20: rad
D21: Ｓ＝ | E21: =15*SQRT(2)*(COS(2*E19))*(1-0.002512/(COS(N8)^2))*COS(N8)/(8*COS(E19))*(E14-E16)*3600 -> 973.72801951 | F21: ″ | G21: = | H21: =DEGREES(H20) -> 28.70209449 | J21: °
D22: a～f | E22: 時間 | G22: B= | H22: =ASIN(COS(H20)*SIN(I8)+SIN(H20)*COS(I8)*COS(H17-H8)) -> -0.2796659078 | J22: rad | K22: B= | M22: =DEGREES(H22) -> -16.02367619 | O22: °
A23: d=T4-T3 | D23: d= | E23: =E12-E11 -> -0.01743889 | G23: l= | H23: =ASIN(SIN(H20)*SIN(H17-H8)/COS(H22)) -> 0.4000159605 | J23: rad | K23: l= | L23: =MID("EW",IF(H23>=0,1,2),1) -> E | M23: =ABS(DEGREES(H23)) -> 22.91922628 | O23: °
A24: e=T4+T3 | D24: e= | E24: =E12+E11 -> 19.16720556 | K24: L0= | M24: =J7-M23+(J7-M23<0)*360 -> 180.9241 | O24: °

Sheet P,B0L0
B1: 観測時における（P、B0、L0、S） | M1: 使い方 | O1: 観測時刻に 時分を入力するだけ
M2: P0,B0,L0は、９時が基準値なので初期値は左表と一致している
C3: 元データは、天文年鑑2025年版 | I3: ″ | J3: ° | K3: ′ | M3: 観測時刻 | P3: 観測時刻の補間値
A4: 2025 | B4: ｶﾘﾝﾄﾝ期 | C4: 天 候 | F4: P | G4: B0 | H4: L0 | I4: S | J4: δ | M4: 時 | N4: 分 | O4: 時間 | P4: 補間後 P0 | Q4: 補間後 B0 | R4: 補間後 L0 | S4: 補間後 S
A5: 2024-12-16 | F5: 9.55 | G5: -1.06 | H5: 287.43 | I5: 977 | J5: -23 | K5: 19
A6: 2024-12-17 | H6: 274.26 | I6: 977 | J6: -23 | K6: 22
A7: 2024-12-18 | H7: 261.08 | I7: 977 | J7: -23 | K7: 24
A8: 2024-12-19 | H8: 247.91 | I8: 977 | J8: -23 | K8: 25
A9: 2024-12-20 | H9: 234.73 | I9: 977 | J9: -23 | K9: 26
A10: 2024-12-21 | F10: 7.23 | G10: -1.69 | H10: 221.56 | I10: 977 | J10: -23 | K10: 26
A11: 2024-12-22 | F11: 6.76 | G11: -1.82 | H11: 208.39 | I11: 977 | J11: -23 | K11: 26
A12: 2024-12-23 | F12: 6.28 | G12: -1.94 | H12: 195.21 | I12: 977 | J12: -23 | K12: 26
A13: 2024-12-24 | F13: 5.80 | G13: -2.06 | H13: 182.04 | I13: 977 | J13: -23 | K13: 25
A14: 2024-12-25 | F14: 5.32 | G14: -2.19 | H14: 168.86 | I14: 977 | J14: -23 | K14: 23
A15: 2024-12-26 | F15: 4.84 | G15: -2.31 | H15: 155.69 | I15: 977 | J15: -23 | K15: 21
A16: 2024-12-27 | F16: 4.36 | G16: -2.43 | H16: 142.52 | I16: 977 | J16: -23 | K16: 19
A17: 2024-12-28 | F17: 3.88 | G17: -2.55 | H17: 129.35 | I17: 977 | J17: -23 | K17: 16
A18: 2024-12-29 | F18: 3.40 | G18: -2.67 | H18: 116.18 | I18: 977 | J18: -23 | K18: 13 | M18: 観測時刻 | P18: 観測時刻の補間値
A19: 2024-12-30 | F19: 2.91 | G19: -2.79 | H19: 103.01 | I19: 977 | J19: -23 | K19: 9 | M19: 時 | N19: 分 | O19: 時間 | P19: 補間後 P0 | Q19: 補間後 B0 | R19: 補間後 L0 | S19: 補間後 S | T19: ΔL | V19: ΔS
A20: 2024-12-31 | F20: 2.43 | G20: -2.91 | H20: 89.84 | I20: 977 | J20: -23 | K20: 5 | M20: 9 | O20: =M20+N20/60 -> 9.000 | P20: =((F20-F19)*(O20-9)/24+F20)*(O20<9)+((F21-F20)*(O20-9)/24+F20)*(O20>=9) -> 2.43 | Q20: =((G20-G19)*(O20-9)/24+G20)*(O20<9)+((G21-G20)*(O20-9)/24+G20)*(O20>=9) -> -2.91 | R20: =U20+360*(U20<0) -> 89.84 | S20: =((I20-I19)*(O20-9)/24+I20)*(O20<9)+((I21-I20)*(O20-9)/24+I20)*(O20>=9) -> 977.00 | T20: =(H21-H20-360*(H21-H20>0))*(O20>9)+(H20-H19-360*(H20-H19>0))*(O20<=9) -> -13.17000 | U20: =(O20-9)*T20/24+H20 -> 89.84
A21: 2025-01-01 | F21: 1.95 | G21: -3.03 | H21: 76.67 | I21: 977 | J21: -23 | K21: 0 | M21: 9 | O21: 9.000 | P21: =((F21-F20)*(O21-9)/24+F21)*(O21<9)+((F22-F21)*(O21-9)/24+F21)*(O21>=9) -> 1.95 | Q21: -3.03 | R21: =U21+360*(U21<0) -> 76.67 | S21: =((I21-I20)*(O21-9)/24+I21)*(O21<9)+((I22-I21)*(O21-9)/24+I21)*(O21>=9) -> 977.00 | T21: =(H22-H21-360*(H22-H21>0))*(O21>9)+(H21-H20-360*(H21-H20>0))*(O21<=9) -> -13.17000 | U21: =(O21-9)*T21/24+H21 -> 76.67
A22: 2025-01-02 | F22: 1.46 | G22: -3.15 | H22: 63.50 | I22: 977 | J22: -22 | K22: 55 | M22: 9 | O22: 9.000 | P22: 1.46 | Q22: -3.15 | R22: =U22+360*(U22<0) -> 63.50 | S22: 977.00 | T22: =(H23-H22-360*(H23-H22>0))*(O22>9)+(H22-H21-360*(H22-H21>0))*(O22<=9) -> -13.17000 | U22: =(O22-9)*T22/24+H22 -> 63.50
A23: 2025-01-03 | F23: 0.98 | G23: -3.26 | H23: 50.33 | I23: 977 | J23: -22 | K23: 49 | M23: 9 | O23: =M23+N23/60 -> 9.000 | P23: =((F23-F22)*(O23-9)/24+F23)*(O23<9)+((F24-F23)*(O23-9)/24+F23)*(O23>=9) -> 0.98 | Q23: =((G23-G22)*(O23-9)/24+G23)*(O23<9)+((G24-G23)*(O23-9)/24+G23)*(O23>=9) -> -3.26 | R23: 50.33 | S23: 977.00 | T23: -13.17000 | U23: 50.33
A24: 2025-01-04 | F24: 0.49 | G24: -3.38 | H24: 37.16 | I24: 977 | J24: -22 | K24: 43 | M24: 9 | O24: =M24+N24/60 -> 9.000 | P24: =((F24-F23)*(O24-9)/24+F24)*(O24<9)+((F25-F24)*(O24-9)/24+F24)*(O24>=9) -> 0.49 | Q24: =((G24-G23)*(O24-9)/24+G24)*(O24<9)+((G25-G24)*(O24-9)/24+G24)*(O24>=9) -> -3.38 | R24: 37.16 | S24: 977.00 | T24: -13.17000 | U24: 37.16
A25: 2025-01-05 | F25: 0.01 | G25: -3.49 | H25: 23.99 | I25: 977 | J25: -22 | K25: 36 | M25: 9 | O25: 9.000 | P25: 0.01 | Q25: -3.49 | R25: 23.99 | S25: 977.00 | T25: -13.17000 | U25: 23.99
A26: 2025-01-06 | F26: -0.47 | G26: -3.60 | H26: 10.82 | I26: 977 | J26: -22 | K26: 29 | M26: 9 | O26: =M26+N26/60 -> 9.000 | P26: =((F26-F25)*(O26-9)/24+F26)*(O26<9)+((F27-F26)*(O26-9)/24+F26)*(O26>=9) -> -0.47 | Q26: =((G26-G25)*(O26-9)/24+G26)*(O26<9)+((G27-G26)*(O26-9)/24+G26)*(O26>=9) -> -3.60 | R26: 10.82 | S26: 977.00 | T26: -13.17000 | U26: 10.82
A27: 2025-01-07 | B27: 2293 | F27: -0.96 | G27: -3.71 | H27: 357.65 | I27: 977 | J27: -22 | K27: 22 | M27: 9 | O27: 9.000 | P27: -0.96 | Q27: -3.71 | R27: 357.65 | S27: 977.00 | T27: -13.17000 | U27: 357.65
A28: 2025-01-08 | B28: 04:43:00 | F28: -1.44 | G28: -3.82 | H28: 344.48 | I28: 977 | J28: -22 | K28: 14 | M28: 9 | O28: 9.000 | P28: -1.44 | Q28: -3.82 | R28: 344.48 | S28: 977.00 | T28: -13.17000 | U28: 344.48
A29: 2025-01-09 | F29: -1.92 | G29: -3.93 | H29: 331.31 | I29: 977 | J29: -22 | K29: 6 | M29: 9 | O29: 9.000 | P29: -1.92 | Q29: -3.93 | R29: 331.31 | S29: 977.00 | T29: -13.17000 | U29: 331.31
A30: 2025-01-10 | F30: -2.40 | G30: -4.04 | H30: 318.14 | I30: 977 | J30: -21 | K30: 57 | M30: 9 | O30: 9.000 | P30: -2.40 | Q30: -4.04 | R30: 318.14 | S30: 977.00 | T30: -13.17000 | U30: 318.14
A31: 2025-01-11 | F31: -2.88 | G31: -4.15 | H31: 304.97 | I31: 977 | J31: -21 | K31: 48 | M31: 9 | O31: 9.000 | P31: -2.88 | Q31: -4.15 | R31: 304.97 | S31: 977.00 | T31: -13.16800 | U31: 304.97
A32: 2025-01-12 | F32: -3.35 | G32: -4.25 | H32: 291.80 | I32: 977 | J32: -21 | K32: 38 | M32: 9 | O32: 9.000 | P32: -3.35 | Q32: -4.25 | R32: 291.80 | S32: 977.00 | T32: -13.16800 | U32: 291.80
A33: 2025-01-13 | F33: -3.82 | G33: -4.36 | H33: 278.64 | I33: 977 | J33: -21 | K33: 28 | M33: 9 | O33: 9.000 | P33: -3.82 | Q33: -4.36 | R33: 278.64 | S33: 977.00 | T33: -13.16800 | U33: 278.64
A34: 2025-01-14 | F34: -4.29 | G34: -4.46 | H34: 265.47 | I34: 977 | J34: -21 | K34: 18 | M34: 9 | O34: 9.000 | P34: -4.29 | Q34: -4.46 | R34: 265.47 | S34: 977.00 | T34: -13.16800 | U34: 265.47
A35: 2025-01-15 | F35: -4.76 | G35: -4.56 | H35: 252.30 | I35: 977 | J35: -21 | K35: 7 | M35: 9 | O35: 9.000 | P35: -4.76 | Q35: -4.56 | R35: 252.30 | S35: 977.00 | T35: -13.16800 | U35: 252.30
A36: 2025-01-16 | F36: -5.23 | G36: -4.66 | H36: 239.13 | I36: 977 | J36: -20 | K36: 56 | M36: 9 | O36: 9.000 | P36: -5.23 | Q36: -4.66 | R36: 239.13 | S36: 977.00 | T36: -13.16800 | U36: 239.13
A37: 2025-01-17 | F37: -5.69 | G37: -4.76 | H37: 225.96 | I37: 977 | J37: -20 | K37: 44 | M37: 9 | O37: 9.000 | P37: -5.69 | Q37: -4.76 | R37: =U37+360*(U37<0) -> 225.96 | S37: 977.00 | T37: =(H38-H37-360*(H38-H37>0))*(O37>9)+(H37-H36-360*(H37-H36>0))*(O37<=9) -> -13.16800 | U37: =(O37-9)*T37/24+H37 -> 225.96
A38: 2025-01-18 | F38: -6.15 | G38: -4.85 | H38: 212.80 | I38: 977 | J38: -20 | K38: 32 | M38: 9 | O38: 9.000 | P38: -6.15 | Q38: -4.85 | R38: 212.80 | S38: 977.00 | T38: -13.16800 | U38: 212.80
A39: 2025-01-19 | F39: -6.61 | G39: -4.95 | H39: 199.63 | I39: 977 | J39: -20 | K39: 20 | M39: 9 | O39: 9.000 | P39: -6.61 | Q39: -4.95 | R39: 199.63 | S39: 977.00 | T39: -13.16800 | U39: 199.63
A40: 2025-01-20 | F40: -7.07 | G40: -5.04 | H40: 186.46 | I40: 977 | J40: -20 | K40: 7 | M40: 9 | O40: 9.000 | P40: -7.07 | Q40: -5.04 | R40: 186.46 | S40: =((I40-I39)*(O40-9)/24+I40)*(O40<9)+((I41-I40)*(O40-9)/24+I40)*(O40>=9) -> 977.00 | T40: -13.16800 | U40: 186.46
A41: 2025-01-21 | F41: -7.52 | G41: -5.13 | H41: 173.29 | I41: 976.8 | J41: -19 | K41: 54 | M41: 9 | O41: 9.000 | P41: -7.52 | Q41: -5.13 | R41: 173.29 | S41: =((I41-I40)*(O41-9)/24+I41)*(O41<9)+((I42-I41)*(O41-9)/24+I41)*(O41>=9) -> 976.80 | T41: -13.16600 | U41: 173.29
A42: 2025-01-22 | F42: -7.97 | G42: -5.22 | H42: 160.13 | I42: 976.6 | J42: -19 | K42: 40 | M42: 9 | O42: 9.000 | P42: -7.97 | Q42: -5.22 | R42: 160.13 | S42: 976.60 | T42: -13.16600 | U42: 160.13
A43: 2025-01-23 | F43: -8.41 | G43: -5.31 | H43: 146.96 | I43: 976.4 | J43: -19 | K43: 26 | M43: 9 | O43: 9.000 | P43: -8.41 | Q43: -5.31 | R43: 146.96 | S43: 976.40 | T43: -13.16600 | U43: 146.96
A44: 2025-01-24 | F44: -8.85 | G44: -5.40 | H44: 133.80 | I44: 976.2 | J44: -19 | K44: 12 | M44: 9 | O44: 9.000 | P44: -8.85 | Q44: -5.40 | R44: 133.80 | S44: 976.20 | T44: -13.16600 | U44: 133.80
A45: 2025-01-25 | F45: -9.29 | G45: -5.48 | H45: 120.63 | I45: 976 | J45: -18 | K45: 57 | M45: 9 | O45: 9.000 | P45: -9.29 | Q45: -5.48 | R45: 120.63 | S45: 976.00 | T45: -13.16600 | U45: 120.63
A46: 2025-01-26 | F46: -9.72 | G46: -5.56 | H46: 107.46 | I46: 976 | J46: -18 | K46: 42 | M46: 9 | O46: 9.000 | P46: -9.72 | Q46: -5.56 | R46: 107.46 | S46: 976.00 | T46: -13.16600 | U46: 107.46
A47: 2025-01-27 | F47: -10.15 | G47: -5.65 | H47: 94.30 | I47: 976 | J47: -18 | K47: 27 | M47: 9 | O47: 9.000 | P47: -10.15 | Q47: -5.65 | R47: 94.30 | S47: 976.00 | T47: -13.16600 | U47: 94.30
A48: 2025-01-28 | F48: -10.58 | G48: -5.73 | H48: 81.13 | I48: 976 | J48: -18 | K48: 11 | M48: 9 | O48: 9.000 | P48: -10.58 | Q48: -5.73 | R48: 81.13 | S48: 976.00 | T48: -13.16600 | U48: 81.13
A49: 2025-01-29 | F49: -11.00 | G49: -5.80 | H49: 67.97 | I49: 976 | J49: -17 | K49: 55 | M49: 9 | O49: 9.000 | P49: -11.00 | Q49: -5.80 | R49: 67.97 | S49: 976.00 | T49: -13.16600 | U49: 67.97
A50: 2025-01-30 | F50: -11.42 | G50: -5.88 | H50: 54.80 | I50: 976 | J50: -17 | K50: 39 | M50: 9 | O50: 9.000 | P50: -11.42 | Q50: -5.88 | R50: =U50+360*(U50<0) -> 54.80 | S50: 976.00 | T50: =(H51-H50-360*(H51-H50>0))*(O50>9)+(H50-H49-360*(H50-H49>0))*(O50<=9) -> -13.16600 | U50: =(O50-9)*T50/24+H50 -> 54.80
A51: 2025-01-31 | F51: -11.83 | G51: -5.95 | H51: 41.63 | I51: 975.8 | J51: -17 | K51: 22 | M51: 9 | O51: 9.000 | P51: -11.83 | Q51: -5.95 | R51: 41.63 | S51: 975.80 | T51: -13.16600 | U51: 41.63
A52: 2025-02-01 | F52: -12.24 | G52: -6.03 | H52: 28.47 | I52: 975.6 | J52: -17 | K52: 5 | M52: 9 | O52: 9.000 | P52: -12.24 | Q52: -6.03 | R52: 28.47 | S52: 975.60 | T52: -13.16600 | U52: 28.47
A53: 2025-02-02 | F53: -12.65 | G53: -6.10 | H53: 15.30 | I53: 975.4 | J53: -16 | K53: 48 | M53: 9 | O53: 9.000 | P53: -12.65 | Q53: -6.10 | R53: 15.30 | S53: 975.40 | T53: -13.16600 | U53: 15.30
A54: 2025-02-03 | B54: 2294 | F54: -13.05 | G54: -6.16 | H54: 2.14 | I54: 975.2 | J54: -16 | K54: 31 | M54: 9 | O54: 9.000 | P54: -13.05 | Q54: -6.16 | R54: 2.14 | S54: 975.20 | T54: -13.16600 | U54: 2.14
A55: 2025-02-04 | B55: 12:54:00 | F55: -13.44 | G55: -6.23 | H55: 348.97 | I55: 975 | J55: -16 | K55: 13 | M55: 9 | O55: 9.000 | P55: -13.44 | Q55: -6.23 | R55: 348.97 | S55: 975.00 | T55: -13.16600 | U55: 348.97
A56: 2025-02-05 | F56: -13.83 | G56: -6.30 | H56: 335.80 | I56: 974.8 | J56: -15 | K56: 55 | M56: 9 | O56: 9.000 | P56: -13.83 | Q56: -6.30 | R56: 335.80 | S56: 974.80 | T56: -13.16600 | U56: 335.80
A57: 2025-02-06 | F57: -14.22 | G57: -6.36 | H57: 322.64 | I57: 974.6 | J57: -15 | K57: 36 | M57: 9 | O57: 9.000 | P57: -14.22 | Q57: -6.36 | R57: 322.64 | S57: 974.60 | T57: -13.16600 | U57: 322.64
A58: 2025-02-07 | F58: -14.60 | G58: -6.42 | H58: 309.47 | I58: 974.4 | J58: -15 | K58: 18 | M58: 9 | O58: 9.000 | P58: -14.60 | Q58: -6.42 | R58: 309.47 | S58: 974.40 | T58: -13.16600 | U58: 309.47
A59: 2025-02-08 | F59: -14.97 | G59: -6.48 | H59: 296.31 | I59: 974.2 | J59: -14 | K59: 59 | M59: 9 | O59: 9.000 | P59: -14.97 | Q59: -6.48 | R59: 296.31 | S59: 974.20 | T59: -13.16600 | U59: 296.31
A60: 2025-02-09 | F60: -15.34 | G60: -6.54 | H60: 283.14 | I60: 974 | J60: -14 | K60: 40 | M60: 9 | O60: 9.000 | P60: -15.34 | Q60: -6.54 | R60: 283.14 | S60: 974.00 | T60: -13.16600 | U60: 283.14
A61: 2025-02-10 | F61: -15.70 | G61: -6.59 | H61: 269.97 | I61: 973.8 | J61: -14 | K61: 20 | M61: 9 | O61: 9.000 | P61: -15.70 | Q61: -6.59 | R61: 269.97 | S61: 973.80 | T61: -13.16800 | U61: 269.97
A62: 2025-02-11 | F62: -16.06 | G62: -6.65 | H62: 256.80 | I62: 973.6 | J62: -14 | K62: 1 | M62: 9 | O62: 9.000 | P62: -16.06 | Q62: -6.65 | R62: 256.80 | S62: 973.60 | T62: -13.16800 | U62: 256.80
A63: 2025-02-12 | F63: -16.42 | G63: -6.70 | H63: 243.64 | I63: 973.4 | J63: -13 | K63: 41 | M63: 9 | O63: 9.000 | P63: -16.42 | Q63: -6.70 | R63: 243.64 | S63: 973.40 | T63: -13.16800 | U63: 243.64
A64: 2025-02-13 | F64: -16.77 | G64: -6.74 | H64: 230.47 | I64: 973.2 | J64: -13 | K64: 21 | M64: 9 | O64: 9.000 | P64: -16.77 | Q64: -6.74 | R64: 230.47 | S64: 973.20 | T64: -13.16800 | U64: 230.47
A65: 2025-02-14 | F65: -17.11 | G65: -6.79 | H65: 217.30 | I65: 973 | J65: -13 | K65: 0 | M65: 9 | O65: 9.000 | P65: -17.11 | Q65: -6.79 | R65: 217.30 | S65: 973.00 | T65: -13.16800 | U65: 217.30
A66: 2025-02-15 | F66: -17.45 | G66: -6.83 | H66: 204.13 | I66: 972.8 | J66: -12 | K66: 40 | M66: 9 | O66: 9.000 | P66: -17.45 | Q66: -6.83 | R66: 204.13 | S66: 972.80 | T66: -13.16800 | U66: 204.13
A67: 2025-02-16 | F67: -17.78 | G67: -6.88 | H67: 190.96 | I67: 972.6 | J67: -12 | K67: 19 | M67: 9 | O67: 9.000 | P67: -17.78 | Q67: -6.88 | R67: 190.96 | S67: 972.60 | T67: -13.16800 | U67: 190.96
A68: 2025-02-17 | F68: -18.11 | G68: -6.92 | H68: 177.80 | I68: 972.4 | J68: -11 | K68: 58 | M68: 9 | O68: 9.000 | P68: -18.11 | Q68: -6.92 | R68: 177.80 | S68: 972.40 | T68: -13.16800 | U68: 177.80
A69: 2025-02-18 | F69: -18.43 | G69: -6.95 | H69: 164.63 | I69: 972.2 | J69: -11 | K69: 37 | M69: 9 | O69: 9.000 | P69: -18.43 | Q69: -6.95 | R69: 164.63 | S69: 972.20 | T69: -13.16800 | U69: 164.63
A70: 2025-02-19 | F70: -18.74 | G70: -6.99 | H70: 151.46 | I70: 972 | J70: -11 | K70: 16 | M70: 9 | O70: 9.000 | P70: -18.74 | Q70: -6.99 | R70: 151.46 | S70: 972.00 | T70: -13.16800 | U70: 151.46
A71: 2025-02-20 | F71: -19.05 | G71: -7.02 | H71: 138.29 | I71: 971.8 | J71: -10 | K71: 55 | M71: 9 | O71: 9.000 | P71: -19.05 | Q71: -7.02 | R71: 138.29 | S71: 971.80 | T71: -13.17000 | U71: 138.29
A72: 2025-02-21 | F72: -19.35 | G72: -7.05 | H72: 125.12 | I72: 971.6 | J72: -10 | K72: 33 | M72: 9 | O72: 9.000 | P72: -19.35 | Q72: -7.05 | R72: 125.12 | S72: 971.60 | T72: -13.17000 | U72: 125.12
A73: 2025-02-22 | F73: -19.65 | G73: -7.08 | H73: 111.95 | I73: 971.4 | J73: -10 | K73: 11 | M73: 9 | O73: 9.000 | P73: -19.65 | Q73: -7.08 | R73: 111.95 | S73: 971.40 | T73: -13.17000 | U73: 111.95
A74: 2025-02-23 | F74: -19.94 | G74: -7.11 | H74: 98.78 | I74: 971.2 | J74: -9 | K74: 49 | M74: 9 | O74: 9.000 | P74: -19.94 | Q74: -7.11 | R74: 98.78 | S74: 971.20 | T74: -13.17000 | U74: 98.78
A75: 2025-02-24 | F75: -20.22 | G75: -7.13 | H75: 85.61 | I75: 971 | J75: -9 | K75: 27 | M75: 9 | O75: 9.000 | P75: -20.22 | Q75: -7.13 | R75: 85.61 | S75: 971.00 | T75: -13.17000 | U75: 85.61
A76: 2025-02-25 | F76: -20.50 | G76: -7.15 | H76: 72.44 | I76: 970.8 | J76: -9 | K76: 5 | M76: 9 | O76: 9.000 | P76: -20.50 | Q76: -7.15 | R76: 72.44 | S76: 970.80 | T76: -13.17200 | U76: 72.44
A77: 2025-02-26 | F77: -20.77 | G77: -7.17 | H77: 59.27 | I77: 970.6 | J77: -8 | K77: 42 | M77: 9 | O77: 9.000 | P77: -20.77 | Q77: -7.17 | R77: 59.27 | S77: 970.60 | T77: -13.17200 | U77: 59.27
A78: 2025-02-27 | F78: -21.04 | G78: -7.19 | H78: 46.09 | I78: 970.4 | J78: -8 | K78: 20 | M78: 9 | O78: 9.000 | P78: -21.04 | Q78: -7.19 | R78: 46.09 | S78: 970.40 | T78: -13.17200 | U78: 46.09
A79: 2025-02-28 | F79: -21.30 | G79: -7.21 | H79: 32.92 | I79: 970.2 | J79: -7 | K79: 57 | M79: 9 | O79: 9.000 | P79: -21.30 | Q79: -7.21 | R79: 32.92 | S79: 970.20 | T79: -13.17200 | U79: 32.92
A80: 2025-03-01 | F80: -21.56 | G80: -7.22 | H80: 19.75 | I80: 970 | J80: -7 | K80: 34 | M80: 9 | O80: 9.000 | P80: -21.56 | Q80: -7.22 | R80: 19.75 | S80: 970.00 | T80: -13.17200 | U80: 19.75
A81: 2025-03-02 | B81: 2295 | F81: -21.81 | G81: -7.23 | H81: 6.58 | I81: 969.8 | J81: -7 | K81: 12 | M81: 9 | O81: 9.000 | P81: -21.81 | Q81: -7.23 | R81: 6.58 | S81: 969.80 | T81: -13.17200 | U81: 6.58
A82: 2025-03-03 | B82: 20:59:00 | F82: -22.05 | G82: -7.24 | H82: 353.41 | I82: 969.6 | J82: -6 | K82: 49 | M82: 9 | O82: 9.000 | P82: -22.05 | Q82: -7.24 | R82: 353.41 | S82: 969.60 | T82: -13.17200 | U82: 353.41
A83: 2025-03-04 | F83: -22.28 | G83: -7.24 | H83: 340.23 | I83: 969.4 | J83: -6 | K83: 26 | M83: 9 | O83: 9.000 | P83: -22.28 | Q83: -7.24 | R83: 340.23 | S83: 969.40 | T83: -13.17200 | U83: 340.23
A84: 2025-03-05 | F84: -22.51 | G84: -7.25 | H84: 327.06 | I84: 969.2 | J84: -6 | K84: 2 | M84: 9 | O84: 9.000 | P84: -22.51 | Q84: -7.25 | R84: 327.06 | S84: 969.20 | T84: -13.17200 | U84: 327.06
A85: 2025-03-06 | F85: -22.73 | G85: -7.25 | H85: 313.89 | I85: 969 | J85: -5 | K85: 39 | M85: 9 | O85: 9.000 | P85: -22.73 | Q85: -7.25 | R85: 313.89 | S85: =((I85-I84)*(O85-9)/24+I85)*(O85<9)+((I86-I85)*(O85-9)/24+I85)*(O85>=9) -> 969.00 | T85: -13.17200 | U85: 313.89
A86: 2025-03-07 | F86: -22.94 | G86: -7.25 | H86: 300.71 | I86: 968.8 | J86: -5 | K86: 16 | M86: 9 | O86: 9.000 | P86: -22.94 | Q86: -7.25 | R86: 300.71 | S86: 968.80 | T86: -13.17800 | U86: 300.71
A87: 2025-03-08 | F87: -23.15 | G87: -7.25 | H87: 287.53 | I87: 968.6 | J87: -4 | K87: 52 | M87: 9 | O87: 9.000 | P87: -23.15 | Q87: -7.25 | R87: 287.53 | S87: 968.60 | T87: -13.17800 | U87: 287.53
A88: 2025-03-09 | F88: -23.36 | G88: -7.24 | H88: 274.36 | I88: 968.4 | J88: -4 | K88: 29 | M88: 9 | O88: 9.000 | P88: -23.36 | Q88: -7.24 | R88: 274.36 | S88: 968.40 | T88: -13.17800 | U88: 274.36
A89: 2025-03-10 | F89: -23.55 | G89: -7.24 | H89: 261.18 | I89: 968.2 | J89: -4 | K89: 6 | M89: 9 | O89: 9.000 | P89: -23.55 | Q89: -7.24 | R89: 261.18 | S89: 968.20 | T89: -13.17800 | U89: 261.18
A90: 2025-03-11 | F90: -23.74 | G90: -7.23 | H90: 248.00 | I90: 968 | J90: -3 | K90: 42 | M90: 9 | O90: =M90+N90/60 -> 9.000 | P90: =((F90-F89)*(O90-9)/24+F90)*(O90<9)+((F91-F90)*(O90-9)/24+F90)*(O90>=9) -> -23.74 | Q90: =((G90-G89)*(O90-9)/24+G90)*(O90<9)+((G91-G90)*(O90-9)/24+G90)*(O90>=9) -> -7.23 | R90: 248.00 | S90: 968.00 | T90: -13.17800 | U90: 248.00
A91: 2025-03-12 | F91: -23.92 | G91: -7.22 | H91: 234.82 | I91: 967.6 | J91: -3 | K91: 18 | M91: 9 | O91: 9.000 | P91: -23.92 | Q91: -7.22 | R91: 234.82 | S91: 967.60 | T91: -13.17800 | U91: 234.82
A92: 2025-03-13 | F92: -24.10 | G92: -7.20 | H92: 221.64 | I92: 967.2 | J92: -2 | K92: 55 | M92: 9 | O92: 9.000 | P92: -24.10 | Q92: -7.20 | R92: 221.64 | S92: 967.20 | T92: -13.17800 | U92: 221.64
A93: 2025-03-14 | F93: -24.27 | G93: -7.19 | H93: 208.47 | I93: 966.8 | J93: -2 | K93: 31 | M93: 9 | O93: 9.000 | P93: -24.27 | Q93: -7.19 | R93: 208.47 | S93: 966.80 | T93: -13.17800 | U93: 208.47
A94: 2025-03-15 | F94: -24.43 | G94: -7.17 | H94: 195.29 | I94: 966.4 | J94: -2 | K94: 8 | M94: 9 | O94: 9.000 | P94: -24.43 | Q94: -7.17 | R94: 195.29 | S94: 966.40 | T94: -13.17800 | U94: 195.29
A95: 2025-03-16 | F95: -24.59 | G95: -7.15 | H95: 182.11 | I95: 966 | J95: -1 | K95: 44 | M95: 9 | O95: 9.000 | P95: -24.59 | Q95: -7.15 | R95: 182.11 | S95: 966.00 | T95: -13.17800 | U95: 182.11
A96: 2025-03-17 | F96: -24.74 | G96: -7.13 | H96: 168.93 | I96: 965.8 | J96: -1 | K96: 20 | M96: 9 | O96: 9.000 | P96: -24.74 | Q96: -7.13 | R96: 168.93 | S96: 965.80 | T96: -13.18400 | U96: 168.93
A97: 2025-03-18 | F97: -24.88 | G97: -7.10 | H97: 155.74 | I97: 965.6 | J97: 0 | K97: -56 | M97: 9 | O97: 9.000 | P97: -24.88 | Q97: -7.10 | R97: 155.74 | S97: 965.60 | T97: -13.18400 | U97: 155.74
A98: 2025-03-19 | F98: -25.02 | G98: -7.08 | H98: 142.56 | I98: 965.4 | J98: 0 | K98: -33 | M98: 9 | O98: 9.000 | P98: -25.02 | Q98: -7.08 | R98: 142.56 | S98: 965.40 | T98: -13.18400 | U98: 142.56
A99: 2025-03-20 | F99: -25.15 | G99: -7.05 | H99: 129.37 | I99: 965.2 | J99: 0 | K99: -9 | M99: 9 | O99: 9.000 | P99: -25.15 | Q99: -7.05 | R99: 129.37 | S99: 965.20 | T99: -13.18400 | U99: 129.37
A100: 2025-03-21 | F100: -25.27 | G100: -7.02 | H100: 116.19 | I100: 965 | J100: 0 | K100: 15 | M100: 9 | O100: 9.000 | P100: -25.27 | Q100: -7.02 | R100: 116.19 | S100: 965.00 | T100: -13.18400 | U100: 116.19
A101: 2025-03-22 | F101: -25.38 | G101: -6.99 | H101: 103.00 | I101: 964.8 | J101: 0 | K101: 38 | M101: 9 | O101: 9.000 | P101: -25.38 | Q101: -6.99 | R101: 103.00 | S101: 964.80 | T101: -13.18600 | U101: 103.00
A102: 2025-03-23 | F102: -25.49 | G102: -6.95 | H102: 89.82 | I102: 964.6 | J102: 1 | K102: 2 | M102: 9 | O102: 9.000 | P102: -25.49 | Q102: -6.95 | R102: 89.82 | S102: 964.60 | T102: -13.18600 | U102: 89.82
A103: 2025-03-24 | F103: -25.59 | G103: -6.91 | H103: 76.63 | I103: 964.4 | J103: 1 | K103: 26 | M103: 9 | O103: 9.000 | P103: -25.59 | Q103: -6.91 | R103: 76.63 | S103: 964.40 | T103: -13.18600 | U103: 76.63
A104: 2025-03-25 | F104: -25.68 | G104: -6.87 | H104: 63.45 | I104: 964.2 | J104: 1 | K104: 49 | M104: 9 | O104: 9.000 | P104: -25.68 | Q104: -6.87 | R104: 63.45 | S104: 964.20 | T104: -13.18600 | U104: 63.45
A105: 2025-03-26 | F105: -25.77 | G105: -6.83 | H105: 50.26 | I105: 964 | J105: 2 | K105: 13 | M105: 9 | O105: 9.000 | P105: -25.77 | Q105: -6.83 | R105: 50.26 | S105: 964.00 | T105: -13.18600 | U105: 50.26
A106: 2025-03-27 | F106: -25.85 | G106: -6.79 | H106: 37.07 | I106: 963.6 | J106: 2 | K106: 36 | M106: 9 | O106: 9.000 | P106: -25.85 | Q106: -6.79 | R106: 37.07 | S106: 963.60 | T106: -13.18800 | U106: 37.07
A107: 2025-03-28 | F107: -25.92 | G107: -6.74 | H107: 23.88 | I107: 963.2 | J107: 3 | K107: 0 | M107: 9 | O107: 9.000 | P107: -25.92 | Q107: -6.74 | R107: 23.88 | S107: 963.20 | T107: -13.18800 | U107: 23.88
A108: 2025-03-29 | F108: -25.99 | G108: -6.70 | H108: 10.70 | I108: 962.8 | J108: 3 | K108: 23 | M108: 9 | O108: 9.000 | P108: -25.99 | Q108: -6.70 | R108: 10.70 | S108: 962.80 | T108: -13.18800 | U108: 10.70
A109: 2025-03-30 | B109: 2296 | F109: -26.05 | G109: -6.65 | H109: 357.51 | I109: 962.4 | J109: 3 | K109: 47 | M109: 9 | O109: 9.000 | P109: -26.05 | Q109: -6.65 | R109: 357.51 | S109: 962.40 | T109: -13.18800 | U109: 357.51
A110: 2025-03-31 | B110: 04:28:00 | F110: -26.10 | G110: -6.60 | H110: 344.32 | I110: 962 | J110: 4 | K110: 10 | M110: 9 | O110: 9.000 | P110: -26.10 | Q110: -6.60 | R110: 344.32 | S110: 962.00 | T110: -13.18800 | U110: 344.32
A111: 2025-04-01 | F111: -26.14 | G111: -6.54 | H111: 331.13 | I111: 961.8 | J111: 4 | K111: 33 | M111: 9 | O111: 9.000 | P111: -26.14 | Q111: -6.54 | R111: 331.13 | S111: 961.80 | T111: -13.19400 | U111: 331.13
A112: 2025-04-02 | F112: -26.18 | G112: -6.48 | H112: 317.93 | I112: 961.6 | J112: 4 | K112: 56 | M112: 9 | O112: 9.000 | P112: -26.18 | Q112: -6.48 | R112: 317.93 | S112: 961.60 | T112: -13.19400 | U112: 317.93
A113: 2025-04-03 | F113: -26.21 | G113: -6.42 | H113: 304.74 | I113: 961.4 | J113: 5 | K113: 19 | M113: 9 | O113: 9.000 | P113: -26.21 | Q113: -6.42 | R113: 304.74 | S113: 961.40 | T113: -13.19400 | U113: 304.74
A114: 2025-04-04 | F114: -26.23 | G114: -6.36 | H114: 291.54 | I114: 961.2 | J114: 5 | K114: 42 | M114: 9 | O114: 9.000 | P114: -26.23 | Q114: -6.36 | R114: =U114+360*(U114<0) -> 291.54 | S114: 961.20 | T114: =(H115-H114-360*(H115-H114>0))*(O114>9)+(H114-H113-360*(H114-H113>0))*(O114<=9) -> -13.19400 | U114: =(O114-9)*T114/24+H114 -> 291.54
A115: 2025-04-05 | F115: -26.25 | G115: -6.30 | H115: 278.35 | I115: 961 | J115: 6 | K115: 5 | M115: 9 | O115: 9.000 | P115: -26.25 | Q115: -6.30 | R115: 278.35 | S115: 961.00 | T115: -13.19400 | U115: 278.35
A116: 2025-04-06 | F116: -26.26 | G116: -6.24 | H116: 265.15 | I116: 960.6 | J116: 6 | K116: 28 | M116: 9 | O116: 9.000 | P116: -26.26 | Q116: -6.24 | R116: 265.15 | S116: 960.60 | T116: -13.19800 | U116: 265.15
A117: 2025-04-07 | F117: -26.26 | G117: -6.18 | H117: 251.95 | I117: 960.2 | J117: 6 | K117: 51 | M117: 9 | O117: 9.000 | P117: -26.26 | Q117: -6.18 | R117: 251.95 | S117: 960.20 | T117: -13.19800 | U117: 251.95
A118: 2025-04-08 | F118: -26.25 | G118: -6.12 | H118: 238.76 | I118: 959.8 | J118: 7 | K118: 13 | M118: 9 | O118: 9.000 | P118: -26.25 | Q118: -6.12 | R118: 238.76 | S118: 959.80 | T118: -13.19800 | U118: 238.76
A119: 2025-04-09 | F119: -26.24 | G119: -6.05 | H119: 225.56 | I119: 959.4 | J119: 7 | K119: 35 | M119: 9 | O119: 9.000 | P119: -26.24 | Q119: -6.05 | R119: 225.56 | S119: 959.40 | T119: -13.19800 | U119: 225.56
A120: 2025-04-10 | F120: -26.22 | G120: -5.99 | H120: 212.36 | I120: 959 | J120: 7 | K120: 58 | M120: 9 | O120: 9.000 | P120: -26.22 | Q120: -5.99 | R120: 212.36 | S120: 959.00 | T120: -13.19800 | U120: 212.36
A121: 2025-04-11 | F121: -26.19 | G121: -5.92 | H121: 199.16 | I121: 958.8 | J121: 8 | K121: 20 | M121: 9 | O121: 9.000 | P121: -26.19 | Q121: -5.92 | R121: 199.16 | S121: 958.80 | T121: -13.20200 | U121: 199.16
A122: 2025-04-12 | F122: -26.15 | G122: -5.85 | H122: 185.96 | I122: 958.6 | J122: 8 | K122: 42 | M122: 9 | O122: 9.000 | P122: -26.15 | Q122: -5.85 | R122: 185.96 | S122: 958.60 | T122: -13.20200 | U122: 185.96
A123: 2025-04-13 | F123: -26.11 | G123: -5.77 | H123: 172.75 | I123: 958.4 | J123: 9 | K123: 4 | M123: 9 | O123: 9.000 | P123: -26.11 | Q123: -5.77 | R123: 172.75 | S123: 958.40 | T123: -13.20200 | U123: 172.75
A124: 2025-04-14 | F124: -26.06 | G124: -5.70 | H124: 159.55 | I124: 958.2 | J124: 9 | K124: 25 | M124: 9 | O124: 9.000 | P124: -26.06 | Q124: -5.70 | R124: 159.55 | S124: 958.20 | T124: -13.20200 | U124: 159.55
A125: 2025-04-15 | F125: -26.00 | G125: -5.62 | H125: 146.35 | I125: 958 | J125: 9 | K125: 47 | M125: 9 | O125: 9.000 | P125: -26.00 | Q125: -5.62 | R125: 146.35 | S125: 958.00 | T125: -13.20200 | U125: 146.35
A126: 2025-04-16 | F126: -25.94 | G126: -5.54 | H126: 133.14 | I126: 957.8 | J126: 10 | K126: 8 | M126: 9 | O126: 9.000 | P126: -25.94 | Q126: -5.54 | R126: 133.14 | S126: 957.80 | T126: -13.20600 | U126: 133.14
A127: 2025-04-17 | F127: -25.87 | G127: -5.46 | H127: 119.94 | I127: 957.6 | J127: 10 | K127: 29 | M127: 9 | O127: 9.000 | P127: -25.87 | Q127: -5.46 | R127: 119.94 | S127: 957.60 | T127: -13.20600 | U127: 119.94
A128: 2025-04-18 | F128: -25.79 | G128: -5.37 | H128: 106.73 | I128: 957.4 | J128: 10 | K128: 50 | M128: 9 | O128: 9.000 | P128: -25.79 | Q128: -5.37 | R128: 106.73 | S128: 957.40 | T128: -13.20600 | U128: 106.73
A129: 2025-04-19 | F129: -25.70 | G129: -5.29 | H129: 93.53 | I129: 957.2 | J129: 11 | K129: 11 | M129: 9 | O129: 9.000 | P129: -25.70 | Q129: -5.29 | R129: 93.53 | S129: 957.20 | T129: -13.20600 | U129: 93.53
A130: 2025-04-20 | F130: -25.61 | G130: -5.20 | H130: 80.32 | I130: 957 | J130: 11 | K130: 32 | M130: 9 | O130: 9.000 | P130: -25.61 | Q130: -5.20 | R130: 80.32 | S130: 957.00 | T130: -13.20600 | U130: 80.32
A131: 2025-04-21 | F131: -25.51 | G131: -5.11 | H131: 67.11 | I131: 956.6 | J131: 11 | K131: 52 | M131: 9 | O131: 9.000 | P131: -25.51 | Q131: -5.11 | R131: 67.11 | S131: 956.60 | T131: -13.20800 | U131: 67.11
A132: 2025-04-22 | F132: -25.40 | G132: -5.03 | H132: 53.90 | I132: 956.2 | J132: 12 | K132: 13 | M132: 9 | O132: 9.000 | P132: -25.40 | Q132: -5.03 | R132: 53.90 | S132: 956.20 | T132: -13.20800 | U132: 53.90
A133: 2025-04-23 | F133: -25.28 | G133: -4.94 | H133: 40.70 | I133: 955.8 | J133: 12 | K133: 33 | M133: 9 | O133: 9.000 | P133: -25.28 | Q133: -4.94 | R133: 40.70 | S133: 955.80 | T133: -13.20800 | U133: 40.70
A134: 2025-04-24 | F134: -25.15 | G134: -4.85 | H134: 27.49 | I134: 955.4 | J134: 12 | K134: 52 | M134: 9 | O134: 9.000 | P134: -25.15 | Q134: -4.85 | R134: 27.49 | S134: 955.40 | T134: -13.20800 | U134: 27.49
A135: 2025-04-25 | F135: -25.02 | G135: -4.76 | H135: 14.28 | I135: 955 | J135: 13 | K135: 12 | M135: 9 | O135: 9.000 | P135: -25.02 | Q135: -4.76 | R135: 14.28 | S135: 955.00 | T135: -13.20800 | U135: 14.28
A136: 2025-04-26 | B136: 2297 | F136: -24.88 | G136: -4.66 | H136: 1.07 | I136: 954.8 | J136: 13 | K136: 32 | M136: 9 | O136: 9.000 | P136: -24.88 | Q136: -4.66 | R136: 1.07 | S136: 954.80 | T136: -13.21400 | U136: 1.07
A137: 2025-04-27 | B137: 10:56:00 | F137: -24.74 | G137: -4.57 | H137: 347.85 | I137: 954.6 | J137: 13 | K137: 51 | M137: 9 | O137: 9.000 | P137: -24.74 | Q137: -4.57 | R137: 347.85 | S137: 954.60 | T137: -13.21400 | U137: 347.85
A138: 2025-04-28 | F138: -24.59 | G138: -4.47 | H138: 334.64 | I138: 954.4 | J138: 14 | K138: 10 | M138: 9 | O138: 9.000 | P138: -24.59 | Q138: -4.47 | R138: 334.64 | S138: 954.40 | T138: -13.21400 | U138: 334.64
A139: 2025-04-29 | F139: -24.43 | G139: -4.37 | H139: 321.42 | I139: 954.2 | J139: 14 | K139: 29 | M139: 9 | O139: 9.000 | P139: -24.43 | Q139: -4.37 | R139: 321.42 | S139: 954.20 | T139: -13.21400 | U139: 321.42
A140: 2025-04-30 | F140: -24.26 | G140: -4.27 | H140: 308.21 | I140: 954 | J140: 14 | K140: 47 | M140: 9 | O140: 9.000 | P140: -24.26 | Q140: -4.27 | R140: 308.21 | S140: 954.00 | T140: -13.21400 | U140: 308.21
A141: 2025-05-01 | F141: -24.08 | G141: -4.17 | H141: 294.99 | I141: 953.8 | J141: 15 | K141: 5 | M141: 9 | O141: 9.000 | P141: -24.08 | Q141: -4.17 | R141: 294.99 | S141: 953.80 | T141: -13.21600 | U141: 294.99
A142: 2025-05-02 | F142: -23.90 | G142: -4.07 | H142: 281.78 | I142: 953.6 | J142: 15 | K142: 23 | M142: 9 | O142: 9.000 | P142: -23.90 | Q142: -4.07 | R142: 281.78 | S142: 953.60 | T142: -13.21600 | U142: 281.78
A143: 2025-05-03 | F143: -23.71 | G143: -3.97 | H143: 268.56 | I143: 953.4 | J143: 15 | K143: 41 | M143: 9 | O143: 9.000 | P143: -23.71 | Q143: -3.97 | R143: 268.56 | S143: 953.40 | T143: -13.21600 | U143: 268.56
A144: 2025-05-04 | F144: -23.51 | G144: -3.86 | H144: 255.35 | I144: 953.2 | J144: 15 | K144: 59 | M144: 9 | O144: 9.000 | P144: -23.51 | Q144: -3.86 | R144: 255.35 | S144: 953.20 | T144: -13.21600 | U144: 255.35
A145: 2025-05-05 | F145: -23.31 | G145: -3.76 | H145: 242.13 | I145: 953 | J145: 16 | K145: 16 | M145: 9 | O145: 9.000 | P145: -23.31 | Q145: -3.76 | R145: 242.13 | S145: 953.00 | T145: -13.21600 | U145: 242.13
A146: 2025-05-06 | F146: -23.10 | G146: -3.66 | H146: 228.91 | I146: 952.8 | J146: 16 | K146: 33 | M146: 9 | O146: 9.000 | P146: -23.10 | Q146: -3.66 | R146: 228.91 | S146: 952.80 | T146: -13.22200 | U146: 228.91
A147: 2025-05-07 | F147: -22.88 | G147: -3.55 | H147: 215.69 | I147: 952.6 | J147: 16 | K147: 50 | M147: 9 | O147: 9.000 | P147: -22.88 | Q147: -3.55 | R147: 215.69 | S147: 952.60 | T147: -13.22200 | U147: 215.69
A148: 2025-05-08 | F148: -22.66 | G148: -3.45 | H148: 202.46 | I148: 952.4 | J148: 17 | K148: 6 | M148: 9 | O148: 9.000 | P148: -22.66 | Q148: -3.45 | R148: 202.46 | S148: 952.40 | T148: -13.22200 | U148: 202.46
A149: 2025-05-09 | F149: -22.43 | G149: -3.34 | H149: 189.24 | I149: 952.2 | J149: 17 | K149: 22 | M149: 9 | O149: 9.000 | P149: -22.43 | Q149: -3.34 | R149: 189.24 | S149: =((I149-I148)*(O149-9)/24+I149)*(O149<9)+((I150-I149)*(O149-9)/24+I149)*(O149>=9) -> 952.20 | T149: -13.22200 | U149: 189.24
A150: 2025-05-10 | F150: -22.19 | G150: -3.23 | H150: 176.02 | I150: 952 | J150: 17 | K150: 38 | M150: 9 | O150: 9.000 | P150: -22.19 | Q150: -3.23 | R150: 176.02 | S150: 952.00 | T150: -13.22200 | U150: 176.02
A151: 2025-05-11 | F151: -21.95 | G151: -3.12 | H151: 162.80 | I151: 951.8 | J151: 17 | K151: 53 | M151: 9 | O151: 9.000 | P151: -21.95 | Q151: -3.12 | R151: 162.80 | S151: 951.80 | T151: -13.22400 | U151: 162.80
A152: 2025-05-12 | F152: -21.69 | G152: -3.01 | H152: 149.57 | I152: 951.6 | J152: 18 | K152: 9 | M152: 9 | O152: 9.000 | P152: -21.69 | Q152: -3.01 | R152: 149.57 | S152: 951.60 | T152: -13.22400 | U152: 149.57
A153: 2025-05-13 | F153: -21.44 | G153: -2.90 | H153: 136.35 | I153: 951.4 | J153: 18 | K153: 24 | M153: 9 | O153: 9.000 | P153: -21.44 | Q153: -2.90 | R153: 136.35 | S153: 951.40 | T153: -13.22400 | U153: 136.35
A154: 2025-05-14 | F154: -21.17 | G154: -2.78 | H154: 123.12 | I154: 951.2 | J154: 18 | K154: 38 | M154: 9 | O154: =M154+N154/60 -> 9.000 | P154: =((F154-F153)*(O154-9)/24+F154)*(O154<9)+((F155-F154)*(O154-9)/24+F154)*(O154>=9) -> -21.17 | Q154: =((G154-G153)*(O154-9)/24+G154)*(O154<9)+((G155-G154)*(O154-9)/24+G154)*(O154>=9) -> -2.78 | R154: 123.12 | S154: 951.20 | T154: -13.22400 | U154: 123.12
A155: 2025-05-15 | F155: -20.90 | G155: -2.67 | H155: 109.90 | I155: 951 | J155: 18 | K155: 53 | M155: 9 | O155: 9.000 | P155: -20.90 | Q155: -2.67 | R155: 109.90 | S155: 951.00 | T155: -13.22400 | U155: 109.90
A156: 2025-05-16 | F156: -20.62 | G156: -2.56 | H156: 96.67 | I156: 950.8 | J156: 19 | K156: 7 | M156: 9 | O156: 9.000 | P156: -20.62 | Q156: -2.56 | R156: 96.67 | S156: 950.80 | T156: -13.22800 | U156: 96.67
A157: 2025-05-17 | F157: -20.34 | G157: -2.44 | H157: 83.44 | I157: 950.6 | J157: 19 | K157: 20 | M157: 9 | O157: 9.000 | P157: -20.34 | Q157: -2.44 | R157: 83.44 | S157: 950.60 | T157: -13.22800 | U157: 83.44
A158: 2025-05-18 | F158: -20.05 | G158: -2.33 | H158: 70.22 | I158: 950.4 | J158: 19 | K158: 34 | M158: 9 | O158: 9.000 | P158: -20.05 | Q158: -2.33 | R158: 70.22 | S158: 950.40 | T158: -13.22800 | U158: 70.22
A159: 2025-05-19 | F159: -19.75 | G159: -2.22 | H159: 56.99 | I159: 950.2 | J159: 19 | K159: 47 | M159: 9 | O159: 9.000 | P159: -19.75 | Q159: -2.22 | R159: 56.99 | S159: 950.20 | T159: -13.22800 | U159: 56.99
A160: 2025-05-20 | F160: -19.45 | G160: -2.10 | H160: 43.76 | I160: 950 | J160: 19 | K160: 59 | M160: 9 | O160: 9.000 | P160: -19.45 | Q160: -2.10 | R160: 43.76 | S160: 950.00 | T160: -13.22800 | U160: 43.76
A161: 2025-05-21 | F161: -19.14 | G161: -1.98 | H161: 30.53 | I161: 949.8 | J161: 20 | K161: 12 | M161: 9 | O161: 9.000 | P161: -19.14 | Q161: -1.98 | R161: 30.53 | S161: 949.80 | T161: -13.22800 | U161: 30.53
A162: 2025-05-22 | F162: -18.82 | G162: -1.87 | H162: 17.30 | I162: 949.6 | J162: 20 | K162: 24 | M162: 9 | O162: 9.000 | P162: -18.82 | Q162: -1.87 | R162: 17.30 | S162: 949.60 | T162: -13.22800 | U162: 17.30
A163: 2025-05-23 | B163: 2298 | F163: -18.50 | G163: -1.75 | H163: 4.08 | I163: 949.4 | J163: 20 | K163: 35 | M163: 9 | O163: 9.000 | P163: -18.50 | Q163: -1.75 | R163: 4.08 | S163: 949.40 | T163: -13.22800 | U163: 4.08
A164: 2025-05-24 | B164: 16:24:00 | F164: -18.17 | G164: -1.63 | H164: 350.85 | I164: 949.2 | J164: 20 | K164: 46 | M164: 9 | O164: 9.000 | P164: -18.17 | Q164: -1.63 | R164: 350.85 | S164: 949.20 | T164: -13.22800 | U164: 350.85
A165: 2025-05-25 | F165: -17.84 | G165: -1.51 | H165: 337.62 | I165: 949 | J165: 20 | K165: 57 | M165: 9 | O165: 9.000 | P165: -17.84 | Q165: -1.51 | R165: 337.62 | S165: 949.00 | T165: -13.22800 | U165: 337.62
A166: 2025-05-26 | F166: -17.50 | G166: -1.39 | H166: 324.39 | I166: 948.8 | J166: 21 | K166: 8 | M166: 9 | O166: 9.000 | P166: -17.50 | Q166: -1.39 | R166: 324.39 | S166: 948.80 | T166: -13.23200 | U166: 324.39
A167: 2025-05-27 | F167: -17.15 | G167: -1.27 | H167: 311.16 | I167: 948.6 | J167: 21 | K167: 18 | M167: 9 | O167: 9.000 | P167: -17.15 | Q167: -1.27 | R167: 311.16 | S167: 948.60 | T167: -13.23200 | U167: 311.16
A168: 2025-05-28 | F168: -16.80 | G168: -1.15 | H168: 297.92 | I168: 948.4 | J168: 21 | K168: 28 | M168: 9 | O168: 9.000 | P168: -16.80 | Q168: -1.15 | R168: 297.92 | S168: 948.40 | T168: -13.23200 | U168: 297.92
A169: 2025-05-29 | F169: -16.44 | G169: -1.03 | H169: 284.69 | I169: 948.2 | J169: 21 | K169: 37 | M169: 9 | O169: 9.000 | P169: -16.44 | Q169: -1.03 | R169: 284.69 | S169: 948.20 | T169: -13.23200 | U169: 284.69
A170: 2025-05-30 | F170: -16.08 | G170: -0.91 | H170: 271.46 | I170: 948 | J170: 21 | K170: 47 | M170: 9 | O170: 9.000 | P170: -16.08 | Q170: -0.91 | R170: 271.46 | S170: 948.00 | T170: -13.23200 | U170: 271.46
A171: 2025-05-31 | F171: -15.72 | G171: -0.79 | H171: 258.21 | I171: 942 | J171: 21 | K171: 55 | M171: 9 | O171: 9.000 | P171: -15.72 | Q171: -0.79 | R171: 258.21 | S171: 942.00 | T171: -13.25200 | U171: 258.21
A172: 2025-06-01 | F172: -15.35 | G172: -0.67 | H172: 244.96 | I172: 936 | J172: 22 | K172: 4 | M172: 9 | O172: 9.000 | P172: -15.35 | Q172: -0.67 | R172: 244.96 | S172: 936.00 | T172: -13.25200 | U172: 244.96
A173: 2025-06-02 | F173: -14.97 | G173: -0.55 | H173: 231.70 | I173: 930 | J173: 22 | K173: 12 | M173: 9 | O173: 9.000 | P173: -14.97 | Q173: -0.55 | R173: 231.70 | S173: 930.00 | T173: -13.25200 | U173: 231.70
A174: 2025-06-03 | F174: -14.59 | G174: -0.43 | H174: 218.45 | I174: 924 | J174: 22 | K174: 19 | M174: 9 | O174: 9.000 | P174: -14.59 | Q174: -0.43 | R174: 218.45 | S174: 924.00 | T174: -13.25200 | U174: 218.45
A175: 2025-06-04 | F175: -14.21 | G175: -0.31 | H175: 205.20 | I175: 918 | J175: 22 | K175: 26 | M175: 9 | O175: 9.000 | P175: -14.21 | Q175: -0.31 | R175: 205.20 | S175: 918.00 | T175: -13.25200 | U175: 205.20
A176: 2025-06-05 | F176: -13.82 | G176: -0.19 | H176: 190.18 | I176: 923.8 | J176: 22 | K176: 33 | M176: 9 | O176: 9.000 | P176: -13.82 | Q176: -0.19 | R176: 190.18 | S176: 923.80 | T176: -15.01600 | U176: 190.18
A177: 2025-06-06 | F177: -13.43 | G177: -0.07 | H177: 175.17 | I177: 929.6 | J177: 22 | K177: 39 | M177: 9 | O177: 9.000 | P177: -13.43 | Q177: -0.07 | R177: 175.17 | S177: 929.60 | T177: -15.01600 | U177: 175.17
A178: 2025-06-07 | F178: -13.03 | G178: 0.05 | H178: 160.15 | I178: 935.4 | J178: 22 | K178: 45 | M178: 9 | O178: 9.000 | P178: -13.03 | Q178: 0.05 | R178: =U178+360*(U178<0) -> 160.15 | S178: 935.40 | T178: =(H179-H178-360*(H179-H178>0))*(O178>9)+(H178-H177-360*(H178-H177>0))*(O178<=9) -> -15.01600 | U178: =(O178-9)*T178/24+H178 -> 160.15
A179: 2025-06-08 | F179: -12.63 | G179: 0.17 | H179: 145.14 | I179: 941.2 | J179: 22 | K179: 51 | M179: 9 | O179: 9.000 | P179: -12.63 | Q179: 0.17 | R179: 145.14 | S179: 941.20 | T179: -15.01600 | U179: 145.14
A180: 2025-06-09 | F180: -12.22 | G180: 0.29 | H180: 130.12 | I180: 947 | J180: 22 | K180: 56 | M180: 9 | O180: 9.000 | P180: -12.22 | Q180: 0.29 | R180: 130.12 | S180: 947.00 | T180: -15.01600 | U180: 130.12
A181: 2025-06-10 | F181: -11.81 | G181: 0.41 | H181: 118.68 | I181: 946.8 | J181: 23 | K181: 1 | M181: 9 | O181: 9.000 | P181: -11.81 | Q181: 0.41 | R181: 118.68 | S181: 946.80 | T181: -11.43600 | U181: 118.68
A182: 2025-06-11 | F182: -11.39 | G182: 0.53 | H182: 107.25 | I182: 946.6 | J182: 23 | K182: 5 | M182: 9 | O182: 9.000 | P182: -11.39 | Q182: 0.53 | R182: 107.25 | S182: 946.60 | T182: -11.43600 | U182: 107.25
A183: 2025-06-12 | F183: -10.98 | G183: 0.66 | H183: 95.81 | I183: 946.4 | J183: 23 | K183: 9 | M183: 9 | O183: 9.000 | P183: -10.98 | Q183: 0.66 | R183: 95.81 | S183: 946.40 | T183: -11.43600 | U183: 95.81
A184: 2025-06-13 | F184: -10.55 | G184: 0.78 | H184: 84.38 | I184: 946.2 | J184: 23 | K184: 13 | M184: 9 | O184: 9.000 | P184: -10.55 | Q184: 0.78 | R184: 84.38 | S184: 946.20 | T184: -11.43600 | U184: 84.38
A185: 2025-06-14 | F185: -10.13 | G185: 0.90 | H185: 72.94 | I185: 946 | J185: 23 | K185: 16 | M185: 9 | O185: 9.000 | P185: -10.13 | Q185: 0.90 | R185: 72.94 | S185: 946.00 | T185: -11.43600 | U185: 72.94
A186: 2025-06-15 | F186: -9.70 | G186: 1.02 | H186: 59.70 | I186: 946 | J186: 23 | K186: 19 | M186: 9 | O186: 9.000 | P186: -9.70 | Q186: 1.02 | R186: 59.70 | S186: 946.00 | T186: -13.23800 | U186: 59.70
A187: 2025-06-16 | F187: -9.27 | G187: 1.14 | H187: 46.46 | I187: 946 | J187: 23 | K187: 21 | M187: 9 | O187: 9.000 | P187: -9.27 | Q187: 1.14 | R187: 46.46 | S187: 946.00 | T187: -13.23800 | U187: 46.46
A188: 2025-06-17 | F188: -8.84 | G188: 1.26 | H188: 33.23 | I188: 946 | J188: 23 | K188: 23 | M188: 9 | O188: 9.000 | P188: -8.84 | Q188: 1.26 | R188: 33.23 | S188: 946.00 | T188: -13.23800 | U188: 33.23
A189: 2025-06-18 | F189: -8.41 | G189: 1.37 | H189: 19.99 | I189: 946 | J189: 23 | K189: 24 | M189: 9 | O189: 9.000 | P189: -8.41 | Q189: 1.37 | R189: 19.99 | S189: 946.00 | T189: -13.23800 | U189: 19.99
A190: 2025-06-19 | B190: 2299 | F190: -7.97 | G190: 1.49 | H190: 6.75 | I190: 946 | J190: 23 | K190: 25 | M190: 9 | O190: 9.000 | P190: -7.97 | Q190: 1.49 | R190: 6.75 | S190: 946.00 | T190: -13.23800 | U190: 6.75
A191: 2025-06-20 | B191: 21:14:00 | F191: -7.53 | G191: 1.61 | H191: 353.51 | I191: 946 | J191: 23 | K191: 26 | M191: 9 | O191: 9.000 | P191: -7.53 | Q191: 1.61 | R191: 353.51 | S191: 946.00 | T191: -13.23600 | U191: 353.51
A192: 2025-06-21 | F192: -7.09 | G192: 1.72 | H192: 340.28 | I192: 946 | J192: 23 | K192: 26 | M192: 9 | O192: 9.000 | P192: -7.09 | Q192: 1.72 | R192: 340.28 | S192: 946.00 | T192: -13.23600 | U192: 340.28
A193: 2025-06-22 | F193: -6.65 | G193: 1.84 | H193: 327.04 | I193: 946 | J193: 23 | K193: 26 | M193: 9 | O193: 9.000 | P193: -6.65 | Q193: 1.84 | R193: 327.04 | S193: 946.00 | T193: -13.23600 | U193: 327.04
A194: 2025-06-23 | F194: -6.21 | G194: 1.95 | H194: 313.81 | I194: 946 | J194: 23 | K194: 26 | M194: 9 | O194: 9.000 | P194: -6.21 | Q194: 1.95 | R194: 313.81 | S194: 946.00 | T194: -13.23600 | U194: 313.81
A195: 2025-06-24 | F195: -5.76 | G195: 2.07 | H195: 300.57 | I195: 946 | J195: 23 | K195: 25 | M195: 9 | O195: 9.000 | P195: -5.76 | Q195: 2.07 | R195: 300.57 | S195: 946.00 | T195: -13.23600 | U195: 300.57
A196: 2025-06-25 | F196: -5.31 | G196: 2.18 | H196: 287.33 | I196: 945.8 | J196: 23 | K196: 23 | M196: 9 | O196: 9.000 | P196: -5.31 | Q196: 2.18 | R196: 287.33 | S196: 945.80 | T196: -13.23600 | U196: 287.33
A197: 2025-06-26 | F197: -4.86 | G197: 2.30 | H197: 274.10 | I197: 945.6 | J197: 23 | K197: 21 | M197: 9 | O197: 9.000 | P197: -4.86 | Q197: 2.30 | R197: 274.10 | S197: 945.60 | T197: -13.23600 | U197: 274.10
A198: 2025-06-27 | F198: -4.41 | G198: 2.41 | H198: 260.86 | I198: 945.4 | J198: 23 | K198: 19 | M198: 9 | O198: 9.000 | P198: -4.41 | Q198: 2.41 | R198: 260.86 | S198: 945.40 | T198: -13.23600 | U198: 260.86
A199: 2025-06-28 | F199: -3.96 | G199: 2.53 | H199: 247.63 | I199: 945.2 | J199: 23 | K199: 17 | M199: 9 | O199: 9.000 | P199: -3.96 | Q199: 2.53 | R199: 247.63 | S199: 945.20 | T199: -13.23600 | U199: 247.63
A200: 2025-06-29 | F200: -3.51 | G200: 2.64 | H200: 234.39 | I200: 945 | J200: 23 | K200: 13 | M200: 9 | O200: 9.000 | P200: -3.51 | Q200: 2.64 | R200: 234.39 | S200: 945.00 | T200: -13.23600 | U200: 234.39
... 190 more rows
